bitfinex/quotes_ETHUSD_20251025
["timestamp","ask_amount","ask_price","bid_price","bid_amount"]
[1761364915262,3.22,3924.6,3924.5,0.002]
[1761364918293,2.54871965,3925.1,3924.5,0.002]
[1761364918294,0.001,3925.1,3924.5,0.002]
[1761364918495,0.001,3925.1,3924.5,3.01408492]
[1761364918701,0.001,3925.1,3924.7,2.54792011]
[1761364918702,3.227,3925.0,3924.7,2.54792011]
[1761364918863,3.227,3925.0,3924.8,0.1272]
[1761364920578,3.227,3925.0,3924.8,2.67510043]
[1761364921405,3.227,3925.0,3924.8,0.1272]
[1761364922290,3.227,3925.0,3924.8,2.67507504]
[1761364922489,3.227,3925.0,3924.8,3.13907504]
[1761364923460,3.227,3925.0,3924.8,2.67507504]
[1761364923879,3.227,3925.0,3924.8,3.13907504]
[1761364924074,3.226,3925.0,3924.9,3.01182683]
[1761364924770,3.226,3925.0,3924.9,0.464]
[1761364929001,3.226,3925.0,3924.9,2.99003561]
[1761364929401,3.227,3925.0,3924.9,2.99003561]
[1761364930070,0.001,3925.0,3924.9,2.99003561]
[1761364930270,0.001,3925.0,3924.9,3.70922531]
[1761364930466,0.001,3925.0,3924.9,3.68374696]
[1761364946018,0.001,3925.0,3924.9,3.24154696]
[1761364946226,0.001,3925.0,3924.9,0.1272]
[1761364946556,0.001,3925.0,3924.9,2.67503561]
[1761364948852,0.001,3925.0,3924.9,3.11723561]
[1761364949845,0.001,3925.0,3924.9,2.67503561]
[1761364953746,0.001,3925.0,3924.9,3.11723561]
[1761364953947,0.001,3925.0,3924.9,4.37987677]
[1761364956358,0.001,3925.0,3924.9,4.40535512]
[1761364956530,0.001,3925.0,3924.9,5.96055512]
[1761364956725,0.001,3925.0,3924.9,5.93507677]
[1761364960776,0.001,3925.0,3924.9,6.44195677]
[1761364960982,0.001,3925.0,3924.9,6.54396883]
[1761364963883,0.001,3925.0,3924.9,10.38396883]
[1761364970867,0.001,3925.0,3924.9,14.12518366]
[1761364974856,0.001,3925.5,3925.4,3.05439108]
[1761364975098,0.001,3925.5,3925.4,10.57430591]
[1761364975798,0.001,3925.5,3925.4,6.93508779]
[1761364981610,0.001,3925.5,3925.4,6.50258779]
[1761364981815,0.001,3925.5,3925.4,10.34258779]
[1761364982013,0.001,3925.5,3925.4,11.07405001]
[1761364982699,0.001,3925.5,3925.4,11.51225001]
[1761364986413,0.001,3925.5,3925.4,11.4102533]
[1761364993720,0.001,3925.5,3925.4,10.9720533]
[1761364995332,0.001,3925.5,3925.4,11.4111533]
[1761364999929,0.001,3925.5,3925.4,11.4131533]
[1761365001529,0.001,3925.5,3925.4,7.5731533]
[1761365005183,0.001,3925.5,3925.4,9.1283533]
[1761365006774,0.001,3925.5,3925.4,13.61394938]
[1761365011790,0.001,3925.5,3925.4,13.71593907]
[1761365017415,0.001,3925.5,3925.4,17.55593907]
[1761365017920,0.001,3925.5,3925.4,13.71593907]
[1761365021311,0.001,3926.3,3926.2,2.546992]
[1761365021616,0.001,3926.3,3926.2,5.763992]
[1761365021818,0.001,3926.3,3926.2,5.891192]
[1761365022514,0.1,3926.3,3926.2,5.891192]
[1761365027698,0.001,3926.3,3926.2,7.953272]
[1761365027897,0.001,3926.3,3926.2,9.78886592]
[1761365032096,0.001,3926.3,3926.2,13.62886592]
[1761365033126,0.001,3927.2,3927.1,4.60848829]
[1761365033640,0.001,3927.2,3927.1,8.28868829]
[1761365033931,0.001,3927.2,3927.1,10.63992189]
[1761365034107,0.001,3927.2,3927.1,9.26810065]
[1761365035015,0.001,3927.2,3927.1,10.63992189]
[1761365035218,0.001,3927.2,3927.1,9.26810065]
[1761365037029,0.001,3927.2,3927.1,8.80390065]
[1761365037833,0.001,3927.2,3927.1,8.93110065]
[1761365042146,0.001,3927.2,3927.1,5.71510065]
[1761365042450,0.1008,3927.2,3927.1,5.76140829]
[1761365047571,0.1008,3927.2,3927.1,2.54640829]
[1761365052377,0.1008,3927.2,3927.1,2.67360829]
[1761365054373,0.1008,3927.2,3927.1,2.54640829]
[1761365062720,0.001,3927.2,3927.1,2.54640829]
[1761365063922,0.001,3927.2,3927.1,2.67360829]
[1761365064108,0.001,3927.2,3927.1,5.88860829]
[1761365068696,0.001,3927.2,3927.1,9.62459249]
[1761365070631,0.001,3927.2,3927.1,11.35923066]
[1761365071520,0.001,3927.2,3927.1,10.88893066]
[1761365072306,0.001,3927.2,3927.1,9.62459249]
[1761365076004,0.001,3927.2,3927.1,5.88860829]
[1761365076250,0.1008,3927.2,3927.1,5.88860829]
[1761365076738,0.001,3927.2,3927.1,5.88860829]
[1761365078252,0.1008,3927.2,3927.1,5.88860829]
[1761365083158,0.001,3927.2,3927.1,5.88860829]
[1761365086765,0.1008,3927.2,3927.1,5.88860829]
[1761365087671,0.001,3927.2,3927.1,5.88860829]
[1761365092192,0.001,3927.2,3927.1,9.62459249]
[1761365102205,0.001,3927.2,3927.1,10.97668115]
[1761365104108,0.001,3927.2,3927.1,11.44048115]
[1761365104439,0.001,3927.2,3927.1,12.99568115]
[1761365104598,0.001,3927.2,3927.1,14.36750239]
[1761365106523,0.001,3927.2,3927.1,12.99568115]
[1761365107625,0.001,3927.2,3927.1,14.87438239]
[1761365108350,0.001,3927.2,3927.1,13.50256115]
[1761365109452,0.001,3927.2,3927.1,17.34256115]
[1761365109814,0.001,3927.2,3927.1,18.71438239]
[1761365110411,0.001,3927.2,3927.1,17.34256115]
[1761365111526,0.001,3927.2,3927.1,17.44451418]
[1761365121131,0.001,3927.2,3927.1,14.22951418]
[1761365121456,0.001,3927.2,3927.1,13.54783927]
[1761365124478,0.001,3927.2,3927.1,12.63283418]
[1761365127199,0.001,3927.2,3927.1,16.47283418]
[1761365128715,0.001,3927.2,3927.1,13.6515157]
[1761365129004,0.001,3927.2,3927.1,12.73584998]
[1761365133207,0.001,3927.2,3927.1,8.89584998]
[1761365136888,0.001,3927.2,3927.1,5.68284998]
[1761365137089,0.001,3927.2,3927.1,8.89584998]
[1761365141732,0.001,3927.2,3927.1,9.36384998]
[1761365141937,0.001,3927.2,3927.1,10.73567122]
[1761365152145,0.001,3927.2,3927.1,9.36384998]
[1761365152446,0.001,3927.2,3927.1,10.73904268]
[1761365156438,0.001,3927.2,3927.1,9.36384998]
[1761365156646,0.001,3927.2,3927.1,10.73896934]
[1761365164062,0.001,3927.2,3927.1,10.26996934]
[1761365166395,0.001,3927.2,3927.1,10.16801631]
[1761365166894,0.001,3927.2,3927.1,8.81592765]
[1761365170067,0.001,3927.2,3927.1,7.44080829]
[1761365171507,0.001,3927.2,3927.1,8.91788692]
[1761365172214,0.001,3927.2,3927.1,7.54276756]
[1761365178013,0.001,3927.2,3927.1,8.91788692]
[1761365178212,0.001,3927.2,3927.1,11.3314221]
[1761365180739,0.001,3927.2,3927.1,10.8968221]
[1761365188845,0.001,3927.2,3927.1,14.63223862]
[1761365195031,0.001,3927.2,3927.1,15.06683862]
[1761365196912,0.001,3927.2,3927.1,14.63223862]
[1761365214925,0.001,3927.2,3927.1,15.09933862]
[1761365220295,0.001,3927.2,3927.1,13.72421926]
[1761365220844,0.001,3927.2,3927.1,15.09933862]
[1761365225484,0.001,3927.2,3927.1,14.63223862]
[1761365225655,0.001,3927.2,3927.1,13.25711926]
[1761365225852,0.001,3927.2,3927.1,4.22880829]
[1761365226058,0.1008,3927.2,3927.1,7.43880829]
[1761365226258,0.001,3927.2,3927.1,7.43880829]
[1761365226789,0.1008,3927.2,3927.1,7.43880829]
[1761365228160,0.1008,3927.2,3927.1,2.67360829]
[1761365228687,0.20376447,3927.2,3927.1,2.67360829]
[1761365229761,0.10396447,3927.2,3927.1,2.67360829]
[1761365231290,0.001,3927.2,3927.1,2.67360829]
[1761365233204,0.001,3927.2,3927.1,2.69907237]
[1761365233369,0.001,3927.2,3927.1,7.86732662]
[1761365233574,0.001,3927.2,3927.1,6.95033524]
[1761365233774,0.001,3927.2,3927.1,8.3254546]
[1761365234299,0.001,3927.2,3927.1,12.26941907]
[1761365235701,0.001,3927.2,3927.1,10.89429971]
[1761365241908,0.001,3927.2,3927.1,7.05429971]
[1761365244289,0.001,3927.2,3927.1,7.30919971]
[1761365244484,0.001,3927.2,3927.1,7.05429971]
[1761365250821,0.001,3927.2,3927.1,11.53547691]
[1761365253719,0.001,3927.2,3927.1,12.90748235]
[1761365254016,0.001,3927.2,3927.1,7.95380515]
[1761365254216,0.001,3927.2,3927.1,9.4196582]
[1761365257803,0.001,3927.2,3927.1,13.2596582]
[1761365259232,0.001,3927.2,3927.1,9.4196582]
[1761365259687,0.001,3927.2,3927.1,5.7047782]
[1761365260022,0.1008,3927.2,3927.1,7.43680829]
[1761365260516,0.1008,3927.2,3927.1,8.35196615]
[1761365261025,0.1008,3927.2,3927.1,7.43680829]
[1761365261920,0.1008,3927.2,3927.1,8.35196615]
[1761365266126,0.1008,3927.2,3927.1,7.43580829]
[1761365266814,0.001,3927.2,3927.1,8.35096615]
[1761365267427,0.001,3927.2,3927.1,7.43580829]
[1761365269399,0.001,3927.2,3927.1,9.30684615]
[1761365269633,0.001,3927.2,3927.1,10.26450664]
[1761365272240,0.001,3927.2,3927.1,5.24621978]
[1761365272449,0.001,3927.2,3927.1,7.53777484]
[1761365275405,0.1008,3927.2,3927.1,7.53777484]
[1761365276108,0.1008,3927.2,3927.1,7.43580829]
[1761365278337,0.001,3927.2,3927.1,7.43580829]
[1761365279322,0.001,3927.2,3927.1,7.53777562]
[1761365280372,0.001,3927.2,3927.1,4.33077562]
[1761365280548,0.001,3927.2,3927.1,4.22880829]
[1761365280712,0.001,3927.2,3927.1,4.33077562]
[1761365285452,0.001,3927.2,3927.1,5.24622056]
[1761365285649,0.001,3927.2,3927.1,4.33077562]
[1761365286356,0.001,3927.2,3927.1,4.22880829]
[1761365288030,0.001,3927.2,3927.1,6.43041802]
[1761365288358,0.001,3927.2,3927.1,5.97947308]
[1761365288559,0.001,3927.2,3927.1,7.35147852]
[1761365288763,0.001,3927.2,3927.1,6.48635308]
[1761365289459,0.001,3927.2,3927.1,6.58830299]
[1761365295989,0.001,3927.2,3927.1,6.12380299]
[1761365296154,0.001,3927.2,3927.1,6.58830299]
[1761365301566,0.001,3927.2,3927.1,15.18331969]
[1761365302394,0.001,3927.2,3927.1,15.18330781]
[1761365304690,0.001,3927.2,3927.1,13.89714302]
[1761365304886,0.001,3927.2,3927.1,12.5248154]
[1761365312136,0.1008,3927.2,3927.1,2.67360829]
[1761365312435,0.1008,3927.2,3927.1,5.87860829]
[1761365314022,0.1008,3927.2,3927.1,2.54640829]
[1761365324449,0.001,3927.2,3927.1,2.67360829]
[1761365325006,0.1008,3927.2,3927.1,2.67360829]
[1761365329117,0.001,3927.2,3927.1,2.67360829]
[1761365329844,0.1008,3927.2,3927.1,2.67360829]
[1761365332743,0.001,3927.2,3927.1,2.67360829]
[1761365333246,0.1008,3927.2,3927.1,2.67360829]
[1761365333973,0.001,3927.2,3927.1,2.67360829]
[1761365338065,0.001,3927.2,3927.1,2.54640829]
[1761365345861,0.001,3927.2,3927.1,2.98180829]
[1761365348038,0.001,3927.2,3927.1,3.10900829]
[1761365350470,0.001,3927.2,3927.1,7.5857932]
[1761365375818,0.001,3927.2,3927.1,7.1503932]
[1761365376023,0.001,3927.2,3927.1,7.6113932]
[1761365376206,0.001,3927.2,3927.1,7.7395932]
[1761365382939,0.001,3927.2,3927.1,9.6744732]
[1761365385613,0.001,3927.2,3927.1,13.5144732]
[1761365389145,0.001,3927.2,3927.1,14.88687569]
[1761365390141,30.96942383,3928.2,3928.1,2.54576003]
[1761365390325,31.06922383,3928.2,3928.1,2.54576003]
[1761365392929,31.06922383,3928.2,3928.1,2.67296003]
[1761365397255,30.96942383,3928.2,3928.1,2.67296003]
[1761365398846,30.97042383,3928.2,3928.1,2.67296003]
[1761365402856,31.07022383,3928.2,3928.1,2.67296003]
[1761365403163,30.97042383,3928.2,3928.1,2.67296003]
[1761365407965,30.97042383,3928.2,3928.1,3.34106003]
[1761365410346,30.97042383,3928.2,3928.1,2.90566003]
[1761365411578,30.97042383,3928.2,3928.1,3.34106003]
[1761365415844,30.97042383,3928.2,3928.1,4.69509786]
[1761365416049,30.97042383,3928.2,3928.1,6.25229786]
[1761365416449,30.97042383,3928.2,3928.1,7.01678975]
[1761365427262,30.97042383,3928.2,3928.1,10.85678975]
[1761365428099,30.97042383,3928.2,3928.1,11.771648]
[1761365428596,30.97042383,3928.2,3928.1,12.278528]
[1761365431475,13.09205783,3928.2,3928.1,7.52366975]
[1761365434782,13.09205783,3928.2,3928.1,11.25666276]
[1761365442230,13.09205783,3928.2,3928.1,12.62906525]
[1761365445332,0.001,3928.2,3928.1,12.62906525]
[1761365448029,0.001,3928.2,3928.1,16.46906525]
[1761365449940,0.001,3928.2,3928.1,15.09666276]
[1761365452721,0.001,3928.2,3928.1,16.4704471]
[1761365455819,0.001,3928.2,3928.1,15.09666276]
[1761365457050,0.001,3928.2,3928.1,11.25666276]
[1761365461927,0.001,3928.2,3928.1,10.58856276]
[1761365463336,0.001,3928.2,3928.1,13.78756276]
[1761365466361,0.001,3928.2,3928.1,13.02307087]
[1761365466730,0.001,3928.2,3928.1,13.12499403]
[1761365468764,0.001,3928.2,3928.1,16.96499403]
[1761365468964,0.001,3928.2,3928.1,13.76599403]
[1761365469165,0.001,3928.2,3928.1,16.96399403]
[1761365471771,0.001,3928.2,3928.1,17.41129403]
[1761365493204,1e-08,3928.5,3928.4,3.05244562]
[1761365493504,1e-08,3928.5,3928.4,14.98821655]
[1761365493716,1e-08,3928.5,3928.4,15.56271655]
[1761365493919,1e-08,3928.5,3928.4,11.93163683]
[1761365496802,1e-08,3928.5,3928.4,12.67685517]
[1761365497700,1e-08,3928.5,3928.4,12.22955517]
[1761365501537,1e-08,3928.5,3928.4,12.66935517]
[1761365502744,1e-08,3928.5,3928.4,12.67135517]
[1761365504731,1e-08,3928.5,3928.4,12.23155517]
[1761365505537,1e-08,3928.5,3928.4,14.22655517]
[1761365507962,1e-08,3928.5,3928.4,13.78675517]
[1761365508341,1e-08,3928.5,3928.4,14.22655517]
[1761365510648,0.001,3928.9,3928.8,4.60738645]
[1761365510950,0.001,3928.9,3928.8,12.4097978]
[1761365513276,0.001,3928.9,3928.8,16.2497978]
[1761365515363,0.001,3928.9,3928.8,17.99313429]
[1761365520451,0.001,3928.9,3928.8,14.15313429]
[1761365520652,0.001,3928.9,3928.8,14.60083429]
[1761365520852,0.001,3928.9,3928.8,14.33313429]
[1761365522553,0.001,3928.9,3928.8,14.78083429]
[1761365523253,0.001,3928.9,3928.8,15.70698271]
[1761365523472,0.001,3928.9,3928.8,14.78083429]
[1761365525389,0.001,3928.9,3928.8,14.33313429]
[1761365531096,0.001,3928.9,3928.8,18.17313429]
[1761365531473,0.001,3928.9,3928.8,18.62493429]
[1761365532602,0.001,3928.9,3928.8,18.17313429]
[1761365532805,0.001,3928.9,3928.8,18.17213429]
[1761365537520,0.001,3928.9,3928.8,14.97613429]
[1761365537826,0.001,3928.9,3928.8,18.17213429]
[1761365538621,0.001,3928.9,3928.8,18.17413429]
[1761365539925,0.1112,3928.9,3928.8,18.17413429]
[1761365540125,0.2103,3928.9,3928.8,18.17413429]
[1761365540493,0.1112,3928.9,3928.8,18.17413429]
[1761365542833,0.1112,3928.9,3928.8,14.33413429]
[1761365544715,0.001,3928.9,3928.8,14.33413429]
[1761365557852,0.001,3928.9,3928.8,18.17413429]
[1761365558727,0.001,3928.9,3928.8,17.42758785]
[1761365563264,0.001,3928.9,3928.8,17.86558785]
[1761365563931,0.001,3928.9,3928.8,21.59725276]
[1761365566465,0.001,3928.9,3928.8,17.86558785]
[1761365567058,0.001,3928.9,3928.8,21.59725276]
[1761365571974,0.001,3928.9,3928.8,21.15925276]
[1761365577346,0.001,3928.9,3928.8,21.59725276]
[1761365590115,0.001,3928.9,3927.7,1.911]
[1761365590116,3.82455395,3928.8,3927.6,3.0609406]
[1761365590263,3.82455395,3928.8,3927.0,0.1206023]
[1761365590264,2.54627861,3927.3,3927.0,0.1206023]
[1761365590469,2.54627861,3927.3,3926.0,0.002]
[1761365590470,4.1049496,3926.1,3926.0,0.002]
[1761365590663,4.1049496,3926.1,3925.4,0.002]
[1761365590664,1.5552,3926.0,3925.4,0.002]
[1761365590880,1.5552,3926.0,3924.6,0.13505874]
[1761365590881,3.74721389,3925.9,3924.6,0.13505874]
[1761365591095,3.74721389,3925.9,3924.6,0.002]
[1761365591096,1.82628253,3924.8,3924.6,0.002]
[1761365591399,1.22799321,3924.7,3924.6,0.002]
[1761365591964,0.54788809,3924.7,3924.6,2.55003037]
[1761365592181,0.68010512,3925.4,3925.0,2.5477707]
[1761365592379,0.68010512,3925.4,3924.6,0.66773876]
[1761365592380,0.54280503,3925.3,3924.9,3.73166491]
[1761365592712,0.54281024,3925.2,3925.0,2.5477707]
[1761365592885,0.68010512,3925.8,3925.1,2.5477024]
[1761365593086,0.5428331,3925.7,3925.1,2.5477024]
[1761365593285,0.5428331,3925.6,3925.3,2.54755724]
[1761365593502,0.5428331,3925.5,3925.3,2.54755724]
[1761365593706,0.68010512,3926.0,3925.3,2.54755724]
[1761365593916,0.54194911,3925.9,3925.3,2.54755724]
[1761365594212,0.1587024,3926.0,3925.3,2.54755724]
[1761365594213,0.54194911,3925.8,3925.3,2.54755724]
[1761365594410,0.54194911,3925.7,3925.3,2.54755724]
[1761365594616,0.54194911,3925.6,3925.2,6.2793053]
[1761365594810,0.54194911,3925.5,3925.2,6.2793053]
[1761365595013,0.1587024,3926.0,3925.2,6.2793053]
[1761365595215,0.5412562,3925.9,3925.2,6.2793053]
[1761365595411,0.5412562,3925.8,3925.2,6.2793053]
[1761365595717,0.5412562,3925.7,3925.2,6.2793053]
[1761365595886,0.5412562,3925.6,3925.2,3.73166491]
[1761365596086,0.22869826,3925.9,3925.2,3.73166491]
[1761365596313,0.54031326,3925.8,3925.2,3.73166491]
[1761365596610,0.54031326,3925.7,3925.2,3.73166491]
[1761365596813,0.54031326,3925.6,3925.2,6.27929766]
[1761365596982,0.54031326,3925.5,3925.2,6.27929766]
[1761365597318,0.22869826,3925.9,3925.2,6.27929766]
[1761365597319,0.53991608,3925.4,3925.2,2.54763275]
[1761365597485,0.90880338,3925.9,3925.1,2.49670181]
[1761365597817,0.53981579,3925.8,3925.1,2.49670181]
[1761365598014,0.53981579,3925.7,3924.9,3.257]
[1761365598316,0.53981579,3925.6,3925.1,2.54768634]
[1761365598515,0.53981579,3925.5,3925.2,2.54763595]
[1761365598696,0.53981579,3925.4,3925.2,2.54763595]
[1761365598880,0.68010512,3926.0,3925.2,2.54763595]
[1761365599083,0.69818687,3925.9,3925.2,2.54763595]
[1761365599309,0.53948447,3925.8,3925.2,2.54763595]
[1761365599514,0.53948447,3925.7,3925.6,7.8342462]
[1761365599778,0.90691886,3926.3,3925.6,7.8342462]
[1761365599779,0.68010512,3926.7,3926.0,2.54711563]
[1761365599982,2.5464092,3927.1,3926.0,6.27878054]
[1761365600204,0.53932782,3927.0,3926.4,0.1272]
[1761365600406,0.66652782,3926.9,3926.4,0.1272]
[1761365600605,0.53932782,3926.8,3926.4,0.1272]
[1761365600806,0.53932782,3926.7,3926.4,0.1272]
[1761365601005,2.67374785,3926.9,3926.4,0.1272]
[1761365601182,0.33219993,3926.8,3926.4,0.1272]
[1761365602923,0.53919254,3926.7,3926.4,0.1272]
[1761365603126,0.53919254,3926.6,3926.4,0.1272]
[1761365603324,0.53919254,3926.5,3926.4,0.1272]
[1761365604909,0.53919254,3926.5,3926.4,0.1292]
[1761365611833,0.53919254,3926.5,3926.4,2.67606226]
[1761365612037,0.68010512,3927.2,3926.5,2.54676606]
[1761365612205,3.25,3927.0,3926.5,2.54676606]
[1761365612533,0.54035054,3926.9,3926.5,2.54676606]
[1761365612740,0.54035054,3926.8,3926.4,2.67605769]
[1761365612904,0.54035054,3926.7,3926.4,0.1292]
[1761365613236,3.249,3927.0,3926.4,2.67605453]
[1761365613531,0.54100793,3926.9,3926.4,2.67605453]
[1761365613714,0.54100793,3926.8,3926.4,0.1292]
[1761365613913,0.39172079,3926.8,3926.4,0.1292]
[1761365614122,0.39172079,3926.8,3926.4,2.67604535]
[1761365615147,0.39172079,3926.8,3926.5,2.54678562]
[1761365616221,0.54236023,3926.7,3926.4,0.1292]
[1761365616422,0.39172079,3926.8,3926.4,2.6760388]
[1761365616739,0.5423601,3926.7,3926.4,2.6760388]
[1761365617043,0.39172079,3926.8,3926.4,2.6760388]
[1761365617222,0.5429971,3926.7,3926.4,2.6760388]
[1761365617424,0.5429971,3926.6,3926.4,2.6760388]
[1761365617623,0.39172079,3926.8,3926.4,0.1292]
[1761365617826,0.54298743,3926.7,3926.5,2.6739974]
[1761365618134,3.247,3926.9,3926.5,2.6739974]
[1761365618135,3.247,3926.9,3926.6,2.54673088]
[1761365618337,0.54376486,3926.8,3926.6,2.54673088]
[1761365618521,0.54376486,3926.7,3926.6,2.54673088]
[1761365618843,0.54376486,3926.7,3926.5,2.67397429]
[1761365619138,0.54376486,3926.6,3926.5,2.67397429]
[1761365619447,0.54376486,3926.6,3926.5,0.1272]
[1761365621840,0.54376486,3926.6,3926.5,2.6739974]
[1761365623718,0.54376486,3926.6,3926.5,0.1272]
[1761365625224,0.54376486,3926.6,3926.5,2.6739974]
[1761365625751,3.246,3926.8,3926.5,2.6739974]
[1761365625940,0.54671665,3926.7,3926.5,2.6739974]
[1761365626120,0.54671665,3926.6,3926.5,2.6739974]
[1761365632644,3.246,3926.8,3926.5,2.6739974]
[1761365632954,0.40659484,3926.8,3926.6,2.54667047]
[1761365633169,3.239,3926.7,3926.6,2.54667047]
[1761365635243,0.001,3926.8,3926.5,0.1272]
[1761365635244,0.001,3926.8,3926.7,2.54666768]
[1761365635643,0.001,3926.8,3926.7,3.00316768]
[1761365641546,0.001,3926.8,3926.7,6.21596768]
[1761365641741,0.001,3926.8,3926.7,8.40524768]
[1761365642074,0.001,3926.8,3926.7,10.08676067]
[1761365642578,0.001,3926.8,3926.7,11.00191669]
[1761365643078,0.001,3926.8,3926.7,10.08676067]
[1761365653751,0.001,3926.8,3926.7,10.1887163]
[1761365654571,0.001,3926.8,3926.7,11.10387232]
[1761365658687,0.001,3926.8,3926.7,10.1887163]
[1761365659183,0.001,3926.8,3926.7,11.10387232]
[1761365660566,0.001,3926.8,3926.7,10.1887163]
[1761365660889,0.001,3926.8,3926.7,11.10253569]
[1761365661062,0.001,3926.8,3926.7,11.10254401]
[1761365662301,0.001,3926.8,3926.7,10.1887163]
[1761365664682,0.001,3926.8,3926.7,10.4435163]
[1761365664888,0.001,3926.8,3926.7,10.1887163]
[1761365665163,0.001,3926.8,3926.7,11.56393053]
[1761365666403,0.001,3926.8,3926.7,14.47142852]
[1761365681831,0.001,3927.2,3927.1,3.05328829]
[1761365682063,0.001,3927.6,3927.5,4.60822894]
[1761365682290,0.001,3927.6,3927.5,12.34358316]
[1761365682470,0.001,3927.6,3927.5,12.92002168]
[1761365682635,0.001,3927.6,3927.5,13.04722168]
[1761365682968,0.001,3927.6,3927.5,16.02792278]
[1761365683166,0.001,3927.6,3927.5,17.13625787]
[1761365688473,0.001,3927.6,3927.5,12.92826095]
[1761365688677,0.001,3927.6,3927.5,13.40296095]
[1761365689468,0.001,3927.6,3927.5,12.92826095]
[1761365690775,0.001,3927.6,3927.5,13.40296095]
[1761365693318,0.001,3927.6,3927.5,12.92826095]
[1761365695400,0.001,3927.6,3927.5,17.52797009]
[1761365697435,0.001,3927.6,3927.5,21.36797009]
[1761365698230,0.001,3927.6,3927.5,20.89327009]
[1761365698828,0.001,3927.6,3927.5,20.50155787]
[1761365699530,0.001,3927.6,3927.5,16.76826095]
[1761365701039,0.001,3927.6,3927.5,20.50155787]
[1761365703146,0.001,3927.6,3927.5,16.76826095]
[1761365703906,0.001,3927.6,3927.5,20.50155787]
[1761365706403,0.001,3927.6,3927.5,20.37435787]
[1761365706628,0.001,3927.6,3927.5,20.84805787]
[1761365709634,0.001,3927.6,3927.5,20.37435787]
[1761365710164,0.001,3927.6,3927.5,16.64106095]
[1761365711149,0.001,3927.6,3927.5,18.47126634]
[1761365711955,0.001,3927.6,3927.5,18.93656634]
[1761365714026,0.001,3927.6,3927.5,22.20456326]
[1761365714853,0.001,3927.6,3927.5,18.47126634]
[1761365715161,0.001,3927.6,3927.5,21.23137009]
[1761365715327,0.001,3928.0,3927.9,3.05276966]
[1761365715528,0.001,3928.0,3927.9,15.70054355]
[1761365715832,0.001,3928.0,3927.9,16.29304355]
[1761365716447,0.001,3928.0,3927.9,12.61374355]
[1761365716667,0.001,3928.0,3927.9,15.82674355]
[1761365723270,0.001,3928.0,3927.9,15.52146658]
[1761365731592,0.001,3928.0,3927.9,11.28128966]
[1761365731772,0.001,3928.0,3927.9,12.65548386]
[1761365731969,0.001,3928.0,3927.9,11.28128966]
[1761365732170,0.001,3928.0,3927.9,16.38878078]
[1761365732952,0.001,3928.0,3927.9,12.54878078]
[1761365735286,0.001,3928.0,3927.9,11.17458658]
[1761365738709,0.001,3928.0,3927.9,7.44128966]
[1761365739024,0.001,3928.0,3927.9,15.01458658]
[1761365742786,0.001,3928.0,3927.9,11.28128966]
[1761365746127,0.001,3928.0,3927.9,9.72608966]
[1761365761062,0.001,3928.0,3927.9,3.84]
[1761365761276,0.001,3928.0,3927.9,6.38588966]
[1761365762555,0.001,3928.0,3927.9,3.84]
[1761365762861,0.001,3928.0,3927.8,2.54593356]
[1761365763770,0.001,3928.0,3927.9,2.54588966]
[1761365765395,0.001,3928.0,3927.8,2.54593849]
[1761365765772,0.001,3928.0,3927.9,2.54588966]
[1761365775670,0.001,3928.0,3927.9,7.46294814]
[1761365775994,0.001,3928.0,3927.9,8.92476467]
[1761365783620,0.001,3928.0,3927.9,8.48886467]
[1761365784079,0.001,3928.0,3927.9,2.67308966]
[1761365784610,0.001,3928.0,3927.9,2.54588966]
[1761365787317,0.001,3928.0,3927.9,2.98178966]
[1761365787490,0.001,3928.0,3927.9,2.54588966]
[1761365794618,0.001,3928.0,3927.9,2.67308966]
[1761365797091,0.001,3928.0,3927.9,3.10898966]
[1761365801024,0.001,3928.0,3927.9,9.89417021]
[1761365801322,0.001,3928.0,3927.9,8.95229087]
[1761365804200,0.001,3928.0,3927.9,12.79229087]
[1761365804636,0.001,3928.0,3927.9,8.95229087]
[1761365804815,0.001,3928.0,3927.9,8.20444303]
[1761365805434,0.001,3928.0,3927.9,8.71132303]
[1761365810220,0.001,3928.4,3928.3,3.05251042]
[1761365810538,0.001,3928.4,3928.3,13.36458762]
[1761365811039,0.001,3928.4,3928.3,13.46650455]
[1761365812238,0.001,3928.4,3928.3,12.09413799]
[1761365820362,0.001,3928.4,3928.3,12.22133799]
[1761365820560,0.001,3928.4,3928.3,13.26716654]
[1761365831062,0.001,3928.4,3928.3,14.6395331]
[1761365831259,0.001,3928.4,3928.3,14.1953331]
[1761365831665,0.001,3928.4,3928.3,14.6425331]
[1761365837186,0.001,3928.4,3928.3,13.27016654]
[1761365853002,0.001,3928.4,3928.3,12.82296654]
[1761365853378,0.001,3928.4,3928.3,13.27016654]
[1761365854812,0.001,3928.4,3928.3,17.11016654]
[1761365865434,0.001,3928.4,3928.3,20.84347718]
[1761365866842,0.001,3928.4,3928.3,17.85497766]
[1761365868630,0.001,3928.4,3928.3,17.40777766]
[1761365870237,0.001,3928.4,3928.3,4.10083042]
[1761365870439,0.001,3928.4,3928.3,4.12628672]
[1761365870935,0.001,3928.4,3928.3,4.57513042]
[1761365871631,0.001,3928.4,3928.3,4.10083042]
[1761365872025,0.001,3928.4,3928.3,4.57513042]
[1761365873927,0.001,3928.4,3928.3,6.78485217]
[1761365874239,0.001,3928.8,3928.7,3.05225124]
[1761365874537,0.001,3928.8,3928.7,11.5992556]
[1761365874744,0.001,3928.8,3928.7,11.57380189]
[1761365874940,0.001,3928.9,3928.8,4.60738645]
[1761365875107,0.001,3928.9,3928.8,5.10713951]
[1761365875305,2.54397498,3930.9,3928.8,5.10713951]
[1761365875306,0.68499574,3931.3,3929.6,4.09998827]
[1761365875508,0.075,3931.6,3930.9,2.54388764]
[1761365875744,0.68499574,3932.0,3931.0,4.47812176]
[1761365875909,0.76406159,3931.5,3931.0,4.47812176]